Cogmind - Beta 13 @@@ ROGUE MODE // 2024.04.10 @ 14:33:18 Player: Lunace Result: Destroyed by as-03020 with Assembled Blade Performance ------------- Evolutions (0) 0 Regions Visited (2) 400 Robots Destroyed (15) 75 Value Destroyed (474) 474 Prototype IDs (0) 0 Alien Tech Used (0) 0 Bonus (0) 0 TOTAL SCORE: 949 Bonus ------- None Cogmind --------- Core Integrity 0/250 Matter 297/400 Energy 250/250 System Corruption 0% Temperature Cool (0) Movement Treading (480) Ox4 Location -10/Mines Parts ------- > --- POWER (1) -------- Ion Engine > --- PROPULSION (2) --- Light Treads > --- UTILITY (2) ------ Huge Storage Unit Medium Matter Pod > --- WEAPON (2) ------- (None) > --- INVENTORY (25) --- Ion Engine Light Treads Light Treads Light Treads Wheel Wheel Wheel Wheel Wheel Wheel Compact Wheel Compact Wheel Small Storage Unit Medium Matter Pod (99) Medium Matter Pod (0) Medium Matter Pod (0) High-capacity Matter Pod (0) High-capacity Matter Pod (0) High-capacity Matter Pod (0) Improved Terrain Scanner Peak State ------------ > --- POWER ------------ Ion Engine > --- PROPULSION ------- Compact Wheel Compact Wheel > --- UTILITY ---------- Huge Storage Unit Improved Terrain Scanner > --- WEAPON ----------- Medium Laser Light Assault Rifle > --- INVENTORY -------- Ion Engine Ion Engine Light Treads Light Treads Light Treads Light Treads Small Storage Unit Small Laser Light Assault Rifle Mining Laser [Rating: 10] Favorites ----------- Power Ion Engine Engine Ion Engine Propulsion Compact Wheel Treads Light Treads Wheel Compact Wheel Utility Huge Storage Unit Device Improved Terrain Scanner Storage Huge Storage Unit Processor Transport Network Coupler Weapon Light Assault Rifle Energy Gun Medium Laser Ballistic Gun Light Assault Rifle Special Weapon Mining Laser Build | -11 -10 -10 ------- Run | Yrd Mat Min Slots Evolved . | . . . Power . | . . . Propulsion . | . . . Utility . | . . . Weapon . | . . . Parts Attached 23 | 7 14 2 Power 3 | 1 2 . Engine 3 | 1 2 . Core . | . . . Reactor . | . . . Propulsion 7 | 2 4 1 Treads 4 | 2 1 1 Leg . | . . . Wheel 3 | . 3 . Hover . | . . . Flight . | . . . Utility 6 | 2 3 1 Device 2 | 1 1 . Storage 3 | 1 1 1 Processor 1 | . 1 . Hackware . | . . . Protection . | . . . Artifact . | . . . Weapon 7 | 2 5 . Energy Gun 3 | . 3 . Energy Cannon . | . . . Ballistic Gun 3 | 2 1 . Ballistic Cannon . | . . . Launcher . | . . . Special Weapon 1 | . 1 . Impact Weapon . | . . . Slashing Weapon . | . . . Piercing Weapon . | . . . Special Melee Weapon . | . . . Unidentified Prototypes . | . . . Parts Lost 11 | . 6 5 Power 2 | . 2 . Propulsion 3 | . 1 2 Utility 1 | . . 1 Weapon 5 | . 3 2 Highest Loss Streak 5 | . 3 5 To Critical Strikes . | . . . Average Slot Usage (%) 100 | . 100 100 Engine 14 | . 14 14 Treads 10 | . 10 . Wheel 17 | . 17 28 Device 10 | . 10 14 Storage 14 | . 14 14 Processor 3 | . 3 . Energy Gun 9 | . 9 . Ballistic Gun 15 | . 15 14 Special Weapon 2 | . 2 14 Naked Turns . | . . . Heaviest Build 89 | 13 89 88 Greatest Support 40 | 40 40 32 Greatest Overweight (x) 5 | 1 5 2 Average Overweight (x) 1 | . 1 2 Largest Inventory Capacity 25 | 8 25 25 Average Capacity 18 | 7 20 25 Most Carried 22 | 4 22 22 Average Carried 8 | 2 9 21 Final Capacity 25 | 8 25 25 Final Carried 22 | 4 22 20 Class Distribution -------------------- 100% | Mutant Dominant Class ---------------- Mutant | -10/Materials Mutant | -10/Mines Resources | -11 -10 -10 ----------- Run | Yrd Mat Min Matter Collected 527 | 248 279 . Remotely . | . . . Salvage Created 626 | 27 599 . Parts 30 | 3 27 . Haulers Intercepted 1 | . 1 . Recyclers Shooed 1 | . 1 . Parts Field Recycled . | . . . Retrieved Matter . | . . . Parts Self-Destructed . | . . . Prevented . | . . . Kills | -11 -10 -10 ------- Run | Yrd Mat Min Combat Hostiles Destroyed 11 | . 11 . Guns 11 | . 11 . Classes Destroyed 5 | 1 4 . Tunneler 1 | 1 . . Hauler 1 | . 1 . Recycler 1 | . 1 . Watcher 1 | . 1 . Grunt 11 | . 11 . Best Kill Streak 4 | 1 4 . Combat Bots Only 4 | . 4 . Max Kills in Single Turn 2 | 1 2 . Gunslinging . | . . . Exploded . | . . . Melee . | . . . Uniques/NPCs Destroyed . | . . . Combat | -11 -10 -10 -------- Run | Yrd Mat Min Hostile Shots Fired 101 | . 75 26 Missed 27 | . 19 8 Damage Taken 1076 | . 725 351 Core 282 | . 153 129 Absorbed by Shields . | . . . Core Remaining (%) 100 | 100 . . Volleys Fired 55 | 4 51 . Largest 2 | 2 2 . Hottest 90 | 40 90 . Shots Fired 106 | 8 98 . Gun 106 | 8 98 . Cannon . | . . . Launcher . | . . . Special . | . . . Kinetic 58 | 8 50 . Thermal 48 | . 48 . Explosive . | . . . Electromagnetic . | . . . Robot Hit Streak 10 | 2 10 . Robot Miss Streak 4 | 2 4 . Penetration Max . | . . . Secondary Targets 2 | . 2 . Max Gunslinging Chain 1 | . 1 . Shots Hit Robots 73 | 4 69 . Core Hits 35 | 2 33 . Critical Kills . | . . . Critical Parts Destroyed . | . . . Critical Strikes 4 | . 4 . Burn 4 | . 4 . Melee Attacks . | . . . Impact . | . . . Slashing . | . . . Piercing . | . . . Sneak Attacks . | . . . Combat Hostiles . | . . . Follow-up Attacks . | . . . Damage Inflicted 911 | 52 859 . Guns 764 | 52 712 . Cannons . | . . . Explosions 147 | . 147 . Melee . | . . . Ramming . | . . . Kinetic 324 | 52 272 . Thermal 468 | . 468 . Explosive . | . . . Electromagnetic 119 | . 119 . Impact . | . . . Slashing . | . . . Piercing . | . . . Highest Corruption . | . . . Average Corruption . | . . . Corruption Purged . | . . . Corruption Blocked . | . . . Overload Shots . | . . . Overflow Damage . | . . . Projectiles . | . . . Explosions . | . . . Melee . | . . . Knockbacks . | . . . Impact . | . . . Kinetic . | . . . Secondary . | . . . Self-Inflicted Damage . | . . . Shots . | . . . Rammed 1 | . . 1 Targets Rammed 1 | . . 1 Kicked . | . . . Crushed . | . . . Highest Temperature 285 | . 285 . Average Temperature 95 | . 95 . Received Heat Transfer 433 | . 393 40 Siege Activations . | . . . Robots Corrupted . | . . . Combat Hostiles . | . . . Parts Fried 2 | . 2 . Impact Corruptions . | . . . Robots Melted . | . . . Combat Hostiles . | . . . Parts Melted 4 | . 4 . Heat Transferred 1594 | . 1594 . Parts Sabotaged . | . . . Parts Stolen . | . . . Parts Stripped . | . . . Power Chain Reactions 1 | . 1 . Alert | -11 -10 -10 ------- Run | Yrd Mat Min Peak Influence 188 | 5 188 73 Initial 73 | . 3 73 Average 84 | 2 95 58 Maximum Alert Level . | . . . Low Security (%) 100 | 100 100 100 Level 1 . | . . . Level 2 . | . . . Level 3 . | . . . Level 4 . | . . . Level 5 . | . . . High Security . | . . . Max Security . | . . . Squads Dispatched 3 | . 3 . Investigation 1 | . 1 . Extermination . | . . . Reinforcement 2 | . 2 . Assault . | . . . Garrison . | . . . Intercept . | . . . Searches Triggered . | . . . Construction Impeded . | . . . Haulers Reinforced . | . . . Active Scanning Responses . | . . . Cargo Convoy Interrupts . | . . . Stealth | -11 -10 -10 --------- Run | Yrd Mat Min Distress Signals 1 | . 1 . Communications Jammed . | . . . Distress Signals . | . . . Times Spotted 36 | . 18 18 Peak Tracking Total 17 | . 5 17 Tactical Retreats . | . . . Traps | -11 -10 -10 ------- Run | Yrd Mat Min Traps Triggered 4 | . 4 . Indirectly 2 | . 2 . Trap Hack Attempts . | . . . Triggered . | . . . Disarmed . | . . . Reprogrammed . | . . . Reused . | . . . Traps Extracted . | . . . Installed . | . . . Triggered . | . . . Objects Rigged 4 | . 4 . Exploded 1 | . 1 . Machines | -11 -10 -10 ---------- Run | Yrd Mat Min Machines Disabled 3 | . 3 . Max in Single Turn 3 | . 3 . Machines Repaired . | . . . Machines Dismantled . | . . . Machines Sabotaged . | . . . Overloaded Fab Kills . | . . . Hacking | -11 -10 -10 --------- Run | Yrd Mat Min Machines Accessed 4 | . 4 . Terminals 4 | . 4 . Fabricators . | . . . Repair Stations . | . . . Recycling Units . | . . . Scanalyzers . | . . . Garrison Access . | . . . Total Hacks 9 | . 9 . Successful 2 | . 2 . Failed 7 | . 7 . Catastrophic . | . . . Database Lockouts . | . . . Manual 9 | . 9 . Terminals 9 | . 9 . Fabricators . | . . . Repair Stations . | . . . Recycling Units . | . . . Scanalyzers . | . . . Garrison Access . | . . . Terminal Hacks . | . . . Fabricator Hacks . | . . . Repair Station Hacks . | . . . Recycling Unit Hacks . | . . . Scanalyzer . | . . . Garrison Access Hacks . | . . . Unauthorized Hacks 2 | . 2 . Terminals 2 | . 2 . Detonate 2 | . 2 . Fabricators . | . . . Repair Stations . | . . . Recycling Units . | . . . Scanalyzers . | . . . Garrison Access . | . . . Data Cores Recovered . | . . . Used . | . . . Hacking Detections 3 | . 3 . Full Trace Events . | . . . Feedback Events . | . . . Feedback Blocked . | . . . Robot Schematics Acquired . | . . . Robots Built . | . . . Authchips . | . . . Time . | . . . Total Robot Build Rating . | . . . Part Schematics Acquired . | . . . Parts Built . | . . . Authchips . | . . . Time . | . . . Total Part Build Rating . | . . . Parts Repaired . | . . . Time . | . . . Parts Recycled . | . . . Recycled Matter . | . . . Retrieved Matter . | . . . Retrieved Components . | . . . Parts Scanalyzed . | . . . Part Schematics Acquired . | . . . Parts Damaged . | . . . Bothacking | -11 -10 -10 ------------ Run | Yrd Mat Min Used RIF Installer . | . . . Robots Hacked . | . . . Non-combat . | . . . Combat . | . . . Robot Hacks Applied . | . . . Relay Couplers Released . | . . . Fabnet Peak Effective % . | . . . Robots Rewired . | . . . Allies Hacked . | . . . Hacks Repelled . | . . . Allies | -11 -10 -10 -------- Run | Yrd Mat Min Total Allies . | . . . Largest Group . | . . . Highest-Rated Group . | . . . Highest-Rated Ally . | . . . Total Orders . | . . . Ally Attacks . | . . . Total Damage . | . . . Kills . | . . . Allies Corrupted . | . . . Allies Melted . | . . . Intel | -11 -10 -10 ------- Run | Yrd Mat Min Robot Analysis Total . | . . . Derelict Logs Recovered . | . . . Drone Launches . | . . . Drone Recoveries . | . . . Exploration | -11 -10 -10 ------------- Run | Yrd Mat Min Turns Passed 877 | 93 770 14 Spaces Moved 431 | 47 378 6 Core 6 | 6 . . Treads 160 | 41 119 . Legs . | . . . Wheels 265 | . 259 6 Hover . | . . . Flight . | . . . Fastest Speed 50 | 50 130 130 Average Speed 145 | 148 145 130 Slowest Speed 175 | 160 175 130 Overloaded Moves . | . . . Propulsion Burnouts . | . . . Robots Hopped . | . . . Cave-ins Triggered . | . . . Exploration Rate (%) 26 | 5 68 6 Regions Visited 2 Branch Regions 1 Pre-discovered Areas 1 | . . 1 Known Exits Taken . | . . . Unknown Exits Taken 2 | 1 1 . Scrap Searched . | . . . Spaces Dug . | . . . Terrain Destroyed 3 | . 3 . Melee . | . . . Projectile . | . . . AOE 3 | . 3 . Terrain Rammed . | . . . Walls Destroyed . | . . . Machines Disabled . | . . . Actions | -11 -10 -10 --------- Run | Yrd Mat Min Total 578 | 61 508 9 Wait 40 | . 40 . Move 429 | 46 377 6 Hop . | . . . Pick Up 26 | 4 22 . Fast Attach 10 | 7 3 . Attach 8 | . 6 2 Detach 2 | . 2 . Swap 5 | . 5 . Drop 2 | . 2 . Fire 55 | 4 51 . Melee . | . . . Ram . | . . . Kick . | . . . Crush 1 | . . 1 Escape Stasis . | . . . Rewire . | . . . Trap . | . . . Miscellaneous . | . . . Route ------- -11/Scrapyard -10/Materials (discovered 4 exits: [*Mat x2] / [*Min] / [Sub]) -10/Mines History --------- Turn | Location | Event 5 | -11/Scrapyard | Discovered new exit (range 14) 94 | -11/Scrapyard | Entered Materials 222 | -10/Materials | Discovered new exit (range 16) 306 | -10/Materials | Build established: Mutant 472 | -10/Materials | Discovered new exit (range 15) 566 | -10/Materials | Lost 3 parts (1p1n1w) 701 | -10/Materials | Discovered new exit (range 16) 712 | -10/Materials | Core integrity fell below 50% 744 | -10/Materials | Discovered new exit (range 9) 766 | -10/Materials | Lost 3 parts (1p2w) 864 | -10/Materials | Entered Mines 865 | -10/Mines | Learned location of Storage (-8) 865 | -10/Mines | Assembled infested the area 876 | -10/Mines | Core integrity fell below 20% 878 | -10/Mines | Destroyed by as-03020 with Assembled Blade Last Messages --------------- A derelict emerges from the shadows: "Are any of them following you? I'm here trying to lose some heat after our second raid on Storage failed. Whatever you do stay away from that place, they've tightened security following our previous successful raids." World map updated: -8/Storage. ALERT: Infestation in the mines, dispatching Demolisher response squad. I8-TIU(g): "We scattered so the Unaware couldn't effectively use their advantage in numbers, and I suggest you do the same." I8-TIU(g) slips back into the shadows. as-70135 destroyed. Mining Laser destroyed. Structural Scanner destroyed. Com. Wheel destroyed. Slammed into as-60943. Lgt. Assault Rifle destroyed. Com. Wheel destroyed. Map ----- +----------------------------------------------------+ | ?????????????????????????????????????????????????? | | ?????????????????????????????????????????????????? | | ?????????????????????????????????????????????????? | | ?????????????????????????????????????????????????? | | ?????????????????????????????????????????????????? | | ?????????????????????????????????????????????????? | | ?????????????????????????????????????????????????? | | ?????????????????????????????????????????????????? | | ?????????????????????????????????????????????????? | | ?????????????????????????????????????????????????? | | ??????????????????????? ??????????????????????? | | ?????????????????????? < ??????????????????????? | | ?????????????????????? ??????????????????????? | | ?????????????????????? a ??????????????????????? | | ?????????????????????? ??????????????????????? | | ??????????????????????? a ??????????????????????? | | ???????????????????????% a??????????????????????? | | ??????????????????????? aa #?????????????????????? | | ?????????????????????? a##?????????????????????? | | ?????????????????????? #a ##?????????????????????? | | ??????????????????????## ##?????????????????????? | | ??????????????????????##aa##?????????????????????? | | ??????????????????????## a##?????????????????????? | | ??????????????????????##aa ?????????????????????? | | ??????????????????????##aa##?????????????????????? | | ??????????????????????## @#########??????????????? | | ??????????????????????## ##########?????????????? | | ????????????????????#### ## ###?????????????? | | ???????????????????##### ##?????????????? | | ???????????????????### ###?????????????? | | ??????????????????### #########??????????????? | | ?????????????????### ##########??????????????? | | ?????????????????## ###?????????????????????? | | ?????????????????## ##??????????????????????? | | ?????????????????### ###??????????????????????? | | ?????????????????##########??????????????????????? | | ??????????????????#######????????????????????????? | | ?????????????????????????????????????????????????? | | | | | | | | | | | | | | | | | | | | | | | | | +----------------------------------------------------+ Best States ------------- Heat Dissipation 25 Energy Generation 10 Energy Capacity 250 Matter Stores 300 Matter Capacity 300 Sight Range 16 Terrain Scan Range 16 Terrain Scan Density 10 Evasion (%) 40 Recoil Reduction 2 Item Schematics ----------------- None Robot Schematics ------------------ None Fabricated ------------ Nothing Alien Tech Used ----------------- None Achievements -------------- None Challenges ------------ None Game ------ Seed SupersonicMissileInverter Manual? 0 Play Time 00:08:00 Cumulative 51.1 hours Start 2024.04.10 @ 14:25:43 End 2024.04.10 @ 14:33:18 Sessions 1 Manual Loads 0 Difficulty Rogue Special Mode None Game No. 54 Rogue 49 Adventurer 5 Explorer 0 Win Type - Total 2 Types 1/0/0/1/0/0/0/0/0 Lore% 28 Gallery% 47 Achievement% 37 Wizard Run 0 Options --------- Layout 1 ASCII 0 Keyboard 0 Movement Arrows Keybinds 0 Fullscreen 1 Font 24/Terminus Map View 50x35 Zoom Use 0% Tactical HUD 0 Map Filters NONE Filters NONE Steam 1 RUN: 96e58511-366b-4f7c-8805-e6261f1b97ce